[Event "LJ Slovak Open 2022"]
[Site "Liptovsky Jan"]
[Date "2022.06.24"]
[Round "2.30"]
[White "Mrkvik, Jan"]
[Black "Ziaran, Viliam"]
[Result "0-1"]
[ECO "D02"]
[WhiteElo "1810"]
[BlackElo "1832"]
[Annotator "NA RC"]
[PlyCount "96"]
[EventDate "2022.06.23"]
[EventType "swiss"]
[EventCountry "SVK"]
[SourceTitle "playchess.com"]
[Source "ChessBase"]
[SourceQuality "1"]
[TimeControl "3600+30"]

1. d4 {[%emt 0:00:03]} d5 {[%emt 0:00:09]} 2. Bf4 {[%emt 0:00:10]} Nf6 {[%emt 0:00:12]} 3. e3 {[%emt 0:00:07]} c6 {[%emt 0:00:10]} 4. Nf3 {[%emt 0:00:16]} e6 {[%emt 0:04:13]} 5. Bd3 {[%emt 0:00:33]} Bd6 {[%emt 0:00:17]} 6. Bg3 {[%emt 0:00:08]} O-O {[%emt 0:00:27]} 7. Nbd2 {[%emt 0:00:25]} Qc7 {[%emt 0:00:37]} 8. Ne5 {[%emt 0:00:37]} Nbd7 {[%emt 0:00:39]} 9. f4 {[%emt 0:00:57]} h6 {[%emt 0:01:01]} 10. c3 {[%emt 0:01:49]} b6 {[%emt 0:01:20]} 11. O-O {[%emt 0:02:59]} c5 {[%emt 0:00:30]} 12. Rc1 {[%emt 0:00:23]} Bb7 {[%emt 0:00:25]} 13. Bh4 {[%emt 0:01:56]} Ne4 {[%emt 0:02:55]} 14. Ndf3 {[%emt 0:13:08]} a6 {[%emt 0:02:17]} 15. Qc2 {[%emt 0:03:43]} Rac8 {[%emt 0:01:49]} 16. g4 {[%emt 0:05:15]} f5 {[%emt 0:06:20]} 17. g5 {[%emt 0:01:36]} c4 {[%emt 0:03:56]} 18. Be2 {[%emt 0:01:37]} Bxe5 {[%emt 0:00:58]} 19. fxe5 {[%emt 0:01:00]} Kh7 {[%emt 0:01:49]} 20. Bd1 {[%emt 0:02:52]} Rfe8 {[%emt 0:03:35]} 21. Qg2 {[%emt 0:01:49]} Nf8 {[%emt 0:00:36]} 22. Be1 {[%emt 0:04:17]} Qe7 {[%emt 0:03:24]} 23. h4 $1 {[%emt 0:02:24]} g6 {[%emt 0:01:42]} (23... h5 $14) 24. gxh6 {[%emt 0:00:41]} Kxh6 {[%emt 0:00:35]} 25. Bc2 {[%emt 0:05:39]} (25. Kh1 $16) 25... Nh7 {[%emt 0:01:05]} 26. Bxe4 {[%emt 0:00:53]} ({White should try} 26. Kh1 $14) 26... dxe4 {[%emt 0:04:47]} 27. Nd2 {[%emt 0:00:43]} g5 {[%emt 0:02:41] [#]} (27... Kg7 $11) 28. Bg3 {[%emt 0:03:33]} (28. hxg5+ $1 $16 Kg7 29. g6) 28... g4 {[%emt 0:11:39]} 29. Bf4+ {[%emt 0:01:13]} Kh5 {[%emt 0:00:57]} 30. Rf2 {[%emt 0:01:43]} Qxh4 {[%emt 0:01:39]} 31. Nxc4 {[%emt 0:07:34]} Rc6 {[%emt 0:04:27]} 32. Nd6 {[%emt 0:00:23]} Re7 {[%emt 0:00:44]} 33. Qf1 {[%emt 0:01:42]} Ng5 {[%emt 0:00:50]} 34. Bxg5 {[%emt 0:00:22]} Qxg5 {[%emt 0:00:59]} 35. Rh2+ {[%emt 0:00:31]} Kg6 {[%emt 0:00:08]} 36. Re1 {[%emt 0:02:47]} b5 {[%emt 0:00:28]} 37. Ree2 $2 {[%emt 0:00:42]} ({White has to play} 37. Rh8 $18) 37... Rcc7 $1 {[%emt 0:00:14]} 38. Qf2 {[%emt 0:00:41]} Bd5 {[%emt 0:00:21]} 39. Qg3 {[%emt 0:00:34]} Bxa2 {[%emt 0:01:19]} 40. Rh8 {[%emt 0:01:31]} Rh7 {[%emt 0:01:14]} 41. Rg8+ {[%emt 0:00:37]} (41. Rh2 $17 Rxh2 42. Rxh2) 41... Rcg7 {[%emt 0:00:44]} 42. Rxg7+ {[%emt 0:00:43]} Kxg7 {[%emt 0:00:25]} ({Not} 42... Rxg7 43. Rh2 $15) 43. Ne8+ $2 {[%emt 0:00:25]} (43. Rh2) 43... Kf8 {[%emt 0:01:55]} 44. Nf6 {[%emt 0:00:31]} Rh3 {[%emt 0:00:13]} 45. Qf4 {[%emt 0:00:56]} Qh4 {[%emt 0:00:37]} 46. Nd7+ {[%emt 0:00:26]} Ke7 {[%emt 0:00:20]} 47. Nf6 {[%emt 0:00:35]} Bc4 {[%emt 0:01:00]} 48. Rg2 {[%emt 0:00:30]} Rh1# {[%emt 0:00:17]} 0-1

[Event "LJ Slovak Open 2022"]
[Site "Liptovsky Jan"]
[Date "2022.06.24"]
[Round "2.31"]
[White "Freibergs, Andrejs"]
[Black "Freibergs, Filips"]
[Result "1-0"]
[ECO "C66"]
[WhiteElo "1526"]
[BlackElo "1250"]
[Annotator "NA RC"]
[PlyCount "61"]
[EventDate "2022.06.23"]
[EventType "swiss"]
[EventCountry "SVK"]
[SourceTitle "playchess.com"]
[Source "ChessBase"]
[SourceQuality "1"]
[TimeControl "3600+30"]

1. e4 {[%emt 0:00:04]} e5 {[%emt 0:00:08]} 2. Nf3 {[%emt 0:00:08]} Nc6 {[%emt 0:00:11]} 3. Bb5 {[%emt 0:00:12]} d6 {[%emt 0:00:10]} 4. O-O {[%emt 0:00:37]} Nf6 {[%emt 0:00:28]} 5. Re1 {[%emt 0:00:11]} Be7 {[%emt 0:00:26]} 6. c3 {[%emt 0:01:02]} O-O {[%emt 0:00:36]} 7. d4 {[%emt 0:00:17]} exd4 {[%emt 0:00:36]} 8. cxd4 {[%emt 0:00:11]} Bg4 {[%emt 0:03:48]} 9. Bxc6 {[%emt 0:01:32]} bxc6 {[%emt 0:00:03]} 10. Nc3 {[%emt 0:00:08]} Re8 {[%emt 0:02:30]} 11. h3 {[%emt 0:00:41]} Bh5 {[%emt 0:01:18]} 12. Bf4 {[%emt 0:00:59]} Nd7 {[%emt 0:05:17]} 13. Qd3 {[%emt 0:01:51]} Bf6 {[%emt 0:02:11]} 14. Rad1 {[%emt 0:04:58]} c5 {[%emt 0:05:19]} 15. g4 {[%emt 0:06:05]} Bg6 {[%emt 0:04:54]} 16. d5 {[%emt 0:03:29]} Rb8 {[%emt 0:05:45]} 17. g5 {[%emt 0:03:14]} Ne5 {[%emt 0:00:55]} 18. Bxe5 {[%emt 0:00:30]} Bxe5 {[%emt 0:00:26]} 19. Nxe5 {[%emt 0:00:18]} Qxg5+ {[%emt 0:03:52]} 20. Ng4 {[%emt 0:00:17]} h5 {[%emt 0:00:34]} 21. Qd2 {[%emt 0:01:34]} Qxd2 {[%emt 0:01:34]} 22. Rxd2 {[%emt 0:00:30]} hxg4 {[%emt 0:00:05]} 23. hxg4 {[%emt 0:00:04]} f5 {[%emt 0:02:45]} 24. gxf5 {[%emt 0:00:34]} Bxf5 {[%emt 0:00:04]} 25. Re3 {[%emt 0:00:50]} Bg6 {[%emt 0:01:38]} 26. b3 {[%emt 0:05:02]} Rb4 {[%emt 0:00:30]} 27. Rde2 {[%emt 0:00:30]} c4 {[%emt 0:00:30]} 28. bxc4 {[%emt 0:00:30]} Kf7 {[%emt 0:04:09]} 29. Kg2 {[%emt 0:00:15]} Reb8 {[%emt 0:04:04]} 30. Kg3 {[%emt 0:04:07]} Bh5 {[%emt 0:02:28]} 31. Kf4 {[%emt 0:06:48]} 1-0

[Event "LJ Slovak Open 2022"]
[Site "Liptovsky Jan"]
[Date "2022.06.24"]
[Round "2.32"]
[White "Muller, Martin"]
[Black "Mirowska, Oliwia"]
[Result "0-1"]
[ECO "A80"]
[WhiteElo "1476"]
[BlackElo "1746"]
[Annotator "NA RC"]
[PlyCount "58"]
[EventDate "2022.06.23"]
[EventType "swiss"]
[EventCountry "SVK"]
[SourceTitle "playchess.com"]
[Source "ChessBase"]
[SourceQuality "1"]
[TimeControl "3600+30"]

1. Nf3 {[%emt 0:00:16]} d6 {[%emt 0:00:38]} 2. d4 {[%emt 0:02:29]} f5 {[%emt 0:00:12]} 3. Bf4 {[%emt 0:00:43]} Nf6 {[%emt 0:00:07]} 4. Nbd2 {[%emt 0:01:14]} g6 {[%emt 0:00:10]} 5. e3 {[%emt 0:01:57]} Bg7 {[%emt 0:00:15]} 6. Bd3 {[%emt 0:00:43]} O-O {[%emt 0:00:20]} 7. c3 {[%emt 0:00:17]} Kh8 {[%emt 0:00:46]} 8. h4 {[%emt 0:00:39]} Nc6 {[%emt 0:01:12]} 9. Bg5 {[%emt 0:03:33]} Qe8 {[%emt 0:01:33]} 10. Bxf6 {[%emt 0:00:46]} Bxf6 {[%emt 0:00:16]} 11. Qc2 {[%emt 0:02:23]} e5 {[%emt 0:00:54]} 12. e4 {[%emt 0:05:14]} exd4 {[%emt 0:04:51]} 13. O-O-O {[%emt 0:03:56]} dxc3 {[%emt 0:00:25]} 14. bxc3 {[%emt 0:00:01]} Ne5 {[%emt 0:00:59]} 15. Rde1 {[%emt 0:01:22]} Nxd3+ {[%emt 0:00:34]} 16. Qxd3 {[%emt 0:00:07]} Qa4 {[%emt 0:01:10]} 17. h5 {[%emt 0:00:44]} fxe4 {[%emt 0:02:33]} 18. Nxe4 {[%emt 0:01:24]} Bf5 {[%emt 0:00:28]} 19. Nd4 {[%emt 0:03:16]} d5 {[%emt 0:05:17]} 20. Nxf5 {[%emt 0:01:30]} dxe4 {[%emt 0:00:17]} 21. Rxe4 {[%emt 0:00:22]} Qa3+ {[%emt 0:00:08]} 22. Kb1 {[%emt 0:01:35]} gxf5 {[%emt 0:00:09]} 23. Rc4 {[%emt 0:00:51]} Qa6 {[%emt 0:00:57]} 24. Rh3 {[%emt 0:01:59]} Rad8 {[%emt 0:00:23]} 25. Qe2 {[%emt 0:01:51]} Rfe8 {[%emt 0:04:46]} 26. Re3 {[%emt 0:00:07]} Rxe3 {[%emt 0:00:26]} 27. fxe3 {[%emt 0:00:05]} Bxc3 {[%emt 0:02:19]} 28. a4 {[%emt 0:02:02]} Rd2 {[%emt 0:01:57]} 29. Qf1 {[%emt 0:00:10]} Qb6+ {[%emt 0:00:15]} 0-1

[Event "LJ Slovak Open 2022"]
[Site "Liptovsky Jan"]
[Date "2022.06.24"]
[Round "2.34"]
[White "Ihnat, Marek"]
[Black "Sokolovsky, Jakub"]
[Result "1-0"]
[ECO "C78"]
[WhiteElo "2045"]
[BlackElo "1613"]
[Annotator "NA RC"]
[PlyCount "79"]
[EventDate "2022.06.23"]
[EventType "swiss"]
[EventCountry "SVK"]
[SourceTitle "playchess.com"]
[Source "ChessBase"]
[SourceQuality "1"]
[TimeControl "3600+30"]

1. e4 {[%emt 0:00:05]} e5 {[%emt 0:00:29]} 2. Nf3 {[%emt 0:00:42]} Nc6 {[%emt 0:00:10]} 3. Bb5 {[%emt 0:00:35]} a6 {[%emt 0:00:32]} 4. Ba4 {[%emt 0:00:17]} Nf6 {[%emt 0:00:14]} 5. O-O {[%emt 0:01:31]} b5 {[%emt 0:01:02]} 6. Bb3 {[%emt 0:00:15]} Bc5 {[%emt 0:00:26]} 7. c3 {[%emt 0:01:33]} d6 {[%emt 0:00:17]} 8. h3 {[%emt 0:01:48]} O-O {[%emt 0:00:26]} 9. d4 {[%emt 0:01:17]} exd4 {[%emt 0:01:38]} 10. cxd4 {[%emt 0:00:25]} Bb6 {[%emt 0:00:33]} 11. Bg5 {[%emt 0:02:32]} h6 {[%emt 0:01:37]} 12. Bh4 {[%emt 0:04:05]} g5 {[%emt 0:06:03]} 13. Bg3 {[%emt 0:04:49]} Nxe4 {[%emt 0:01:38]} 14. Bc2 {[%emt 0:03:08]} Nxg3 {[%emt 0:04:11]} 15. fxg3 {[%emt 0:00:29]} Qf6 {[%emt 0:09:06]} 16. Kh2 {[%emt 0:05:44]} Qg7 {[%emt 0:08:03]} 17. Be4 {[%emt 0:11:48]} Bb7 {[%emt 0:01:31]} 18. Na3 {[%emt 0:02:20]} ({White should try} 18. Nc3 $15) 18... Rae8 {[%emt 0:06:44]} 19. Bd5 {[%emt 0:01:14]} Na5 {[%emt 0:01:29]} 20. Bxb7 {[%emt 0:00:33]} Nxb7 {[%emt 0:00:02]} 21. Nc2 {[%emt 0:00:34]} Na5 {[%emt 0:01:14]} 22. b3 {[%emt 0:00:45]} Nc6 {[%emt 0:00:44]} 23. Rc1 {[%emt 0:01:37]} Re4 {[%emt 0:05:15]} (23... Ne7 $142 24. Nb4 a5) 24. d5 {[%emt 0:00:40]} ({White should play} 24. Qd3 Rfe8 25. Qc3) 24... Ne5 {[%emt 0:00:25]} 25. Nd2 {[%emt 0:02:56]} Qg6 {[%emt 0:07:08]} 26. Nxe4 {[%emt 0:01:58]} Qxe4 {[%emt 0:00:02]} 27. Re1 {[%emt 0:03:16]} Qg6 {[%emt 0:00:59] [#]} 28. Nb4 $1 {[%emt 0:01:04]} Kh8 {[%emt 0:02:24]} 29. Rc2 {[%emt 0:02:18]} (29. Nxa6 $142 Nd3 30. Rf1 (30. Nxc7 Rc8 $16)) 29... a5 {[%emt 0:02:19]} 30. Nc6 {[%emt 0:01:01]} Nxc6 {[%emt 0:03:18]} 31. Rxc6 {[%emt 0:00:30]} h5 {[%emt 0:01:27]} 32. Rc2 {[%emt 0:01:20]} h4 {[%emt 0:00:44]} 33. g4 {[%emt 0:00:47]} Kh7 {[%emt 0:02:10]} 34. Rce2 {[%emt 0:00:56]} Kg7 {[%emt 0:01:38]} 35. Qa1+ {[%emt 0:00:45]} Kh6 {[%emt 0:00:21]} (35... Qf6 {was called for.} 36. Qxf6+ Kxf6) 36. Rf1 {[%emt 0:01:10]} f6 $2 {[%emt 0:00:36]} (36... Kh7 37. Re7 Kg8) 37. Re6 $2 {[%emt 0:00:46]} (37. Re7) 37... Kg7 {[%emt 0:00:13]} 38. Re7+ {[%emt 0:01:49]} Rf7 {[%emt 0:00:42]} 39. g3 $4 {[%emt 0:02:43]} hxg3+ $19 {[%emt 0:00:23]} (39... Rxe7 $142 40. Qb2 Re5 41. Rf5 Rxf5 42. gxf5 hxg3+ 43. Kxg3 Qe8 44. Qd2 Qe4 45. Qd1 Qf4+ 46. Kg2 Qf2+ 47. Kh1 Be3 48. a3 Qxf5 49. Kh2 Qf2+ 50. Kh1 Qg3 51. Qg4 Qe1+ 52. Kg2 Qf2+ 53. Kh1 Qf1+ 54. Kh2 Bf4+ 55. Qxf4 gxf4 56. b4 Qf2+ 57. Kh1 f3 58. bxa5 Qg2#) 40. Kxg3 {[%emt 0:00:14]} 1-0

[Event "LJ Slovak Open 2022"]
[Site "Liptovsky Jan"]
[Date "2022.06.24"]
[Round "2.35"]
[White "Magda, Filip"]
[Black "Zelenka, Matej"]
[Result "0-1"]
[ECO "D78"]
[WhiteElo "1624"]
[BlackElo "1400"]
[Annotator "NA RC"]
[PlyCount "84"]
[EventDate "2022.06.23"]
[EventType "swiss"]
[EventCountry "SVK"]
[SourceTitle "playchess.com"]
[Source "ChessBase"]
[SourceQuality "1"]
[TimeControl "3600+30"]

1. d4 {[%emt 0:00:22]} d5 {[%emt 0:00:29]} 2. Nf3 {[%emt 0:00:30]} Nf6 {[%emt 0:00:19]} 3. c4 {[%emt 0:01:01]} c6 {[%emt 0:01:24]} 4. Nc3 {[%emt 0:00:56]} Bf5 {[%emt 0:01:13]} 5. g3 {[%emt 0:01:20]} g6 {[%emt 0:00:10]} 6. Bg2 {[%emt 0:01:21]} Bg7 {[%emt 0:00:35]} 7. O-O {[%emt 0:01:15]} O-O {[%emt 0:00:39]} 8. b3 {[%emt 0:01:06]} Nbd7 {[%emt 0:00:57]} 9. Bb2 {[%emt 0:00:47]} Qc7 {[%emt 0:01:12]} 10. Nh4 {[%emt 0:15:54]} Be6 {[%emt 0:02:57]} 11. cxd5 {[%emt 0:01:59]} cxd5 {[%emt 0:02:45]} 12. Rc1 {[%emt 0:01:36]} Qa5 {[%emt 0:02:16]} 13. a3 {[%emt 0:00:53]} Rac8 {[%emt 0:00:15]} 14. b4 {[%emt 0:01:51]} Qb6 {[%emt 0:02:03]} 15. Nf3 {[%emt 0:02:35]} a6 {[%emt 0:00:23]} 16. Ng5 {[%emt 0:02:16]} Rc7 {[%emt 0:02:08]} 17. Na4 {[%emt 0:06:27]} Rxc1 {[%emt 0:00:39]} 18. Qxc1 {[%emt 0:01:56]} Qb5 {[%emt 0:03:50]} 19. Nxe6 {[%emt 0:01:30]} fxe6 {[%emt 0:00:13]} 20. Nc3 {[%emt 0:00:28]} Qc6 {[%emt 0:00:26]} 21. Na2 {[%emt 0:08:03]} Rc8 {[%emt 0:00:18]} 22. Qxc6 {[%emt 0:00:37]} Rxc6 {[%emt 0:00:07]} 23. Rc1 {[%emt 0:00:17]} Rxc1+ {[%emt 0:02:41]} 24. Nxc1 {[%emt 0:00:29]} Nb6 {[%emt 0:00:23]} 25. Nd3 {[%emt 0:03:44]} Nc4 {[%emt 0:00:18]} 26. Bc1 {[%emt 0:03:02]} Ne4 {[%emt 0:03:14]} 27. Bxe4 {[%emt 0:02:04]} dxe4 {[%emt 0:00:06]} 28. Nc5 {[%emt 0:00:17]} Bxd4 {[%emt 0:02:17]} 29. Nxb7 {[%emt 0:01:07]} e3 {[%emt 0:01:27]} 30. fxe3 {[%emt 0:01:17]} Bb6 {[%emt 0:02:36]} 31. Nc5 {[%emt 0:02:42]} Bxc5 {[%emt 0:00:40]} 32. bxc5 {[%emt 0:00:06]} Kf8 {[%emt 0:00:08]} 33. Kf2 {[%emt 0:01:02]} Ke8 {[%emt 0:00:21]} 34. Kf3 {[%emt 0:00:27]} Kd7 {[%emt 0:00:45]} 35. Ke4 {[%emt 0:00:34]} Kc6 {[%emt 0:00:09]} 36. Kd4 {[%emt 0:00:12]} Na5 {[%emt 0:00:08]} 37. Bb2 {[%emt 0:02:10]} e5+ {[%emt 0:01:17]} 38. Ke4 {[%emt 0:02:08]} Kxc5 {[%emt 0:00:49]} 39. Bc3 {[%emt 0:01:07]} Nc6 {[%emt 0:00:47]} 40. Bxe5 {[%emt 0:00:52]} a5 {[%emt 0:01:07]} 41. Bd4+ {[%emt 0:01:36]} Kc4 {[%emt 0:00:25]} 42. Bb2 {[%emt 0:00:49]} Kb3 {[%emt 0:00:55]} 0-1

[Event "LJ Slovak Open 2022"]
[Site "Liptovsky Jan"]
[Date "2022.06.24"]
[Round "2.36"]
[White "Bodnar, Frantisek"]
[Black "Lis, Maksymilian"]
[Result "0-1"]
[ECO "A45"]
[WhiteElo "1379"]
[BlackElo "1511"]
[Annotator "NA RC"]
[PlyCount "84"]
[EventDate "2022.06.23"]
[EventType "swiss"]
[EventCountry "SVK"]
[SourceTitle "playchess.com"]
[Source "ChessBase"]
[SourceQuality "1"]
[TimeControl "3600+30"]

1. d4 {[%emt 0:00:43]} Nf6 {[%emt 0:00:26]} 2. Bf4 {[%emt 0:00:38]} c5 {[%emt 0:00:12]} 3. e3 {[%emt 0:00:30]} Qb6 {[%emt 0:00:21]} 4. Nc3 {[%emt 0:00:42]} a6 {[%emt 0:00:13]} 5. Na4 {[%emt 0:02:09]} Qa5+ {[%emt 0:00:19]} 6. Nc3 {[%emt 0:00:27]} g6 {[%emt 0:02:13]} 7. Bd3 {[%emt 0:03:30]} Bg7 {[%emt 0:00:20]} 8. Nf3 {[%emt 0:01:11]} O-O {[%emt 0:00:30]} 9. O-O {[%emt 0:03:14]} d6 {[%emt 0:00:21]} 10. e4 {[%emt 0:02:06]} cxd4 {[%emt 0:00:38]} 11. Nxd4 {[%emt 0:00:23]} Nc6 {[%emt 0:01:01]} 12. Nxc6 {[%emt 0:01:48]} bxc6 {[%emt 0:00:05]} 13. Bd2 {[%emt 0:00:15]} Qc7 {[%emt 0:01:40]} 14. Qf3 {[%emt 0:05:14]} Be6 {[%emt 0:03:39]} 15. Rfe1 {[%emt 0:05:45]} Nd7 {[%emt 0:00:42]} 16. b3 {[%emt 0:01:41]} a5 {[%emt 0:02:18]} 17. Rab1 {[%emt 0:01:26]} Nc5 {[%emt 0:01:28]} 18. Ne2 {[%emt 0:00:53]} f5 {[%emt 0:01:31]} 19. exf5 {[%emt 0:03:58]} Nxd3 {[%emt 0:00:09]} 20. Qxd3 {[%emt 0:01:09]} Bxf5 {[%emt 0:00:08]} 21. Qc4+ {[%emt 0:02:02]} d5 {[%emt 0:00:24]} 22. Qc5 {[%emt 0:00:16]} e5 {[%emt 0:00:49]} 23. Rbc1 {[%emt 0:04:03]} a4 {[%emt 0:00:33]} 24. Nc3 {[%emt 0:00:24]} axb3 {[%emt 0:12:34]} 25. axb3 {[%emt 0:01:25]} Rfc8 {[%emt 0:00:29]} 26. Nxd5 {[%emt 0:00:39]} cxd5 {[%emt 0:00:10]} 27. Qxd5+ {[%emt 0:00:57]} Qf7 {[%emt 0:00:09]} 28. Qxf7+ {[%emt 0:04:13]} Kxf7 {[%emt 0:00:07]} 29. c4 {[%emt 0:00:18]} Ra2 {[%emt 0:00:09]} 30. Be3 {[%emt 0:00:37]} Rb2 {[%emt 0:00:09]} 31. Bb6 {[%emt 0:01:04]} Rxb3 {[%emt 0:00:14]} 32. c5 {[%emt 0:00:11]} Bh6 {[%emt 0:00:09]} 33. Rcd1 {[%emt 0:00:43]} e4 {[%emt 0:00:30]} 34. h3 {[%emt 0:00:29]} g5 {[%emt 0:00:25]} 35. g4 {[%emt 0:00:21]} Bg6 {[%emt 0:00:05]} 36. Rd8 {[%emt 0:01:48]} Rxd8 {[%emt 0:00:19]} 37. Bxd8 {[%emt 0:00:02]} Rc3 {[%emt 0:00:29]} 38. Bb6 {[%emt 0:00:05]} Bf8 {[%emt 0:00:18]} 39. f4 {[%emt 0:01:28]} gxf4 {[%emt 0:00:19]} 40. h4 {[%emt 0:00:23]} h6 {[%emt 0:00:49]} 41. Rd1 {[%emt 0:00:34]} Bxc5+ {[%emt 0:00:41]} 42. Bxc5 {[%emt 0:00:39]} Rxc5 {[%emt 0:00:00]} 0-1

[Event "LJ Slovak Open 2022"]
[Site "Liptovsky Jan"]
[Date "2022.06.24"]
[Round "2.37"]
[White "Subjakova, Kristina"]
[Black "Vojtko, Imrich"]
[Result "1-0"]
[ECO "B00"]
[WhiteElo "1623"]
[BlackElo "1382"]
[Annotator "NA RC"]
[PlyCount "65"]
[EventDate "2022.06.23"]
[EventType "swiss"]
[EventCountry "SVK"]
[SourceTitle "playchess.com"]
[Source "ChessBase"]
[SourceQuality "1"]
[TimeControl "3600+30"]

1. e4 {[%emt 0:00:03]} Nc6 {[%emt 0:00:29]} 2. Nf3 {[%emt 0:00:07]} d6 {[%emt 0:00:30]} 3. Bb5 {[%emt 0:00:23]} a6 {[%emt 0:00:19]} 4. Ba4 {[%emt 0:00:08]} b5 {[%emt 0:00:09]} 5. Bb3 {[%emt 0:00:07]} h6 {[%emt 0:00:31]} 6. d4 {[%emt 0:01:04]} Na5 {[%emt 0:00:32]} 7. c3 {[%emt 0:00:36]} Nxb3 {[%emt 0:00:17]} 8. Qxb3 {[%emt 0:00:16]} Be6 {[%emt 0:00:12]} 9. d5 {[%emt 0:00:39]} Bg4 {[%emt 0:00:49]} 10. Nbd2 {[%emt 0:01:47]} Nf6 {[%emt 0:00:30]} 11. c4 {[%emt 0:02:18]} Bd7 {[%emt 0:00:12]} 12. Nd4 {[%emt 0:01:29]} bxc4 {[%emt 0:00:50]} 13. Qxc4 {[%emt 0:00:18]} g6 {[%emt 0:00:38]} 14. Nc6 {[%emt 0:01:41]} Qc8 {[%emt 0:02:26]} 15. b3 {[%emt 0:01:15]} Bg7 {[%emt 0:00:10]} 16. Bb2 {[%emt 0:00:11]} Bxc6 {[%emt 0:00:16]} 17. Qxc6+ {[%emt 0:00:08]} Nd7 {[%emt 0:00:37]} 18. Bxg7 {[%emt 0:00:12]} Rh7 {[%emt 0:00:19]} 19. Bd4 {[%emt 0:00:18]} f6 {[%emt 0:01:18]} 20. Rc1 {[%emt 0:00:12]} Kf7 {[%emt 0:00:29]} 21. Qxc7 {[%emt 0:00:13]} Qe8 {[%emt 0:00:30]} 22. O-O {[%emt 0:00:15]} h5 {[%emt 0:01:12]} 23. f4 {[%emt 0:00:18]} h4 {[%emt 0:00:23]} 24. Nf3 {[%emt 0:00:10]} Rh5 {[%emt 0:00:41]} 25. e5 {[%emt 0:00:14]} Kg8 {[%emt 0:01:58]} 26. exd6 {[%emt 0:00:34]} e5 {[%emt 0:00:37]} 27. fxe5 {[%emt 0:01:36]} fxe5 {[%emt 0:00:25]} 28. Rfe1 {[%emt 0:00:07]} e4 {[%emt 0:02:24]} 29. Rxe4 {[%emt 0:02:16]} Qxe4 {[%emt 0:01:26]} 30. Qxd7 {[%emt 0:00:06]} Rh7 {[%emt 0:00:09]} 31. Rc8+ {[%emt 0:00:12]} Rxc8 {[%emt 0:00:11]} 32. Qxc8+ {[%emt 0:00:04]} Qe8 {[%emt 0:00:43]} 33. Qxe8# {[%emt 0:00:07]} 1-0

[Event "LJ Slovak Open 2022"]
[Site "Liptovsky Jan"]
[Date "2022.06.24"]
[Round "2.38"]
[White "Carnecky, Viliam"]
[Black "Kolibik, Jan"]
[Result "1/2-1/2"]
[ECO "B35"]
[WhiteElo "1380"]
[BlackElo "1621"]
[Annotator "NA RC"]
[PlyCount "95"]
[EventDate "2022.06.23"]
[EventType "swiss"]
[EventCountry "SVK"]
[SourceTitle "playchess.com"]
[Source "ChessBase"]
[SourceQuality "1"]
[TimeControl "3600+30"]

1. e4 {[%emt 0:00:03]} c5 {[%emt 0:00:09]} 2. Nf3 {[%emt 0:00:33]} Nc6 {[%emt 0:00:37]} 3. d4 {[%emt 0:00:54]} cxd4 {[%emt 0:00:20]} 4. Nxd4 {[%emt 0:00:09]} g6 {[%emt 0:00:31]} 5. Nc3 {[%emt 0:00:58]} Bg7 {[%emt 0:00:34]} 6. Be3 {[%emt 0:01:20]} Nf6 {[%emt 0:00:30]} 7. Bc4 {[%emt 0:05:34]} Qa5 {[%emt 0:01:29]} 8. O-O {[%emt 0:02:49]} O-O {[%emt 0:01:02]} 9. Re1 {[%emt 0:06:07]} d6 {[%emt 0:01:10]} 10. f3 {[%emt 0:05:20]} Bd7 {[%emt 0:04:57]} 11. a3 {[%emt 0:09:05]} a6 {[%emt 0:01:58]} 12. Rb1 {[%emt 0:03:14]} Rfe8 {[%emt 0:03:09]} 13. Nb3 {[%emt 0:03:20]} Qc7 {[%emt 0:01:10]} 14. Bd5 {[%emt 0:02:52]} b5 {[%emt 0:02:40]} 15. Nd4 {[%emt 0:03:53]} Rac8 {[%emt 0:00:52]} 16. Nxc6 {[%emt 0:01:43]} Bxc6 {[%emt 0:00:15]} 17. Bxc6 {[%emt 0:00:07]} Qxc6 {[%emt 0:00:16]} 18. Qd2 {[%emt 0:00:55]} Nd7 {[%emt 0:01:29]} 19. Bd4 {[%emt 0:01:02]} Bxd4+ {[%emt 0:05:00]} 20. Qxd4 {[%emt 0:00:31]} Qb6 {[%emt 0:01:57]} 21. Qxb6 {[%emt 0:04:57]} Nxb6 {[%emt 0:00:11]} 22. Re2 {[%emt 0:01:51]} Rc5 {[%emt 0:04:43]} 23. Nd1 {[%emt 0:02:12]} Nc4 {[%emt 0:02:23]} 24. c3 {[%emt 0:01:20]} Rec8 {[%emt 0:05:45]} 25. Ne3 {[%emt 0:01:46]} Nxe3 {[%emt 0:02:00]} 26. Rxe3 {[%emt 0:00:04]} Kf8 {[%emt 0:01:13]} 27. Kf2 {[%emt 0:01:08]} e6 {[%emt 0:00:57]} 28. Rd1 {[%emt 0:02:14]} Rd8 {[%emt 0:01:24]} 29. Red3 {[%emt 0:00:51]} Ke7 {[%emt 0:00:42]} 30. Ke3 {[%emt 0:01:12]} Rc7 {[%emt 0:00:52]} 31. Rd4 {[%emt 0:00:59]} Rcd7 {[%emt 0:00:53]} 32. a4 {[%emt 0:01:57]} Rb8 {[%emt 0:00:37]} 33. axb5 {[%emt 0:00:32]} Rxb5 {[%emt 0:00:36]} 34. Rb1 {[%emt 0:00:07]} Rc7 {[%emt 0:04:06]} 35. Kd3 {[%emt 0:01:17]} a5 {[%emt 0:01:38]} 36. Rc4 {[%emt 0:01:30]} Rcb7 {[%emt 0:01:43]} 37. Kc2 {[%emt 0:00:28]} d5 {[%emt 0:00:19]} 38. exd5 {[%emt 0:01:05]} Rxd5 {[%emt 0:00:13]} 39. Re4 {[%emt 0:00:42]} Rbd7 {[%emt 0:01:22]} 40. Re2 {[%emt 0:00:25]} Rb7 {[%emt 0:00:16]} 41. Rd2 {[%emt 0:00:36]} Rdb5 {[%emt 0:00:48]} 42. Rd4 {[%emt 0:00:18]} Re5 {[%emt 0:00:52]} 43. Rd2 {[%emt 0:00:11]} Rbb5 {[%emt 0:00:38]} 44. Rbd1 {[%emt 0:01:27]} Re3 {[%emt 0:01:11]} 45. Rd3 {[%emt 0:00:44]} Re2+ {[%emt 0:01:08]} 46. R3d2 {[%emt 0:00:09]} Re3 {[%emt 0:01:45]} 47. Rd3 {[%emt 0:00:38]} Re2+ {[%emt 0:00:06]} 48. R3d2 {[%emt 0:00:00]} 1/2-1/2